Cogmind - Beta 16 @@@ ROGUE MODE // 2025.11.23 @ 03:59:40 Player: roc Result: Destroyed by Y-64 Sentinel with KE Penetrator Performance ------------- Evolutions (6) 3000 Regions Visited (18) 3600 Robots Destroyed (146) 730 Value Destroyed (4878) 4878 Prototype IDs (19) 380 Alien Tech Used (1) 200 Bonus (855) 855 TOTAL SCORE: 13643 Bonus ------- Follower Combat Kills 267 Registered with UFD 300 Met Optimus in HQ 500 Friendly Fire -212 Cogmind --------- Core Integrity 0/1150 Matter 250/300 Energy 99/100 System Corruption 3% Temperature Cool (19) Movement Core (50) Location -4/Extension Parts ------- > --- POWER (2) -------- (None) > --- PROPULSION (6) --- (None) > --- UTILITY (10) ----- (None) > --- WEAPON (2) ------- (None) > --- INVENTORY (5) ---- VTOL Module VTOL Module Structural Scanner HERF Cannon Improved Datajack Peak State ------------ > --- POWER ------------ Antimatter Reactor > --- PROPULSION ------- Flexi-carbon Leg Armored Leg Armored Leg Armored Leg Armored Leg Gyrokinetic Inverter > --- UTILITY ---------- Power Amplifier Power Amplifier Improved Heat Sink Advanced Heat Sink Advanced Heat Sink Improved Signal Interpreter Advanced Signal Interpreter Improved Force Field Hacking Suite Hacking Suite > --- WEAPON ----------- Advanced Plasma Cannon Advanced Plasma Cannon > --- INVENTORY -------- VTOL Module VTOL Module Structural Scanner HERF Cannon Improved Datajack [Rating: 95] Favorites ----------- Power Cooled Ion Engine Engine Cooled Ion Engine Power Core Micro Nuclear Core Reactor Antimatter Reactor Propulsion Light Treads Treads Light Treads Leg Armored Leg Wheel Armored Wheel Hover Unit Antigrav System Flight Unit Improved Flight Unit Utility Huge Storage Unit Device Seismic Detector Storage Huge Storage Unit Processor Transport Network Coupler Hackware Hacking Suite Protection Medium Armor Plating Weapon Hammer Energy Gun Small Laser Energy Cannon Light EM Pulse Cannon Ballistic Gun Improved Assault Rifle Ballistic Cannon Slug Cannon Launcher Rocket Launcher Special Weapon Improved Plasma Cutter Impact Weapon Hammer Piercing Weapon Force Lance Special Melee Weapon Datajack Build | -11 -10 -10 -9 -9 -9 -9 -6 -6 -6 -6 -6 -6 -5 -5 -5 -5 -4 -4 ------- Run | Yrd Mat Min Mat Sto Rec Scr Fac Was Fac Low Low Zio Pro Fac Was Fac Fac Ext Slots Evolved 12 | . . . 2 . . . 6 . . . . . . 2 . . 2 . Power . | . . . . . . . . . . . . . . . . . . . Propulsion 4 | . . . 1 . . . 2 . . . . . . 1 . . . . Utility 8 | . . . 1 . . . 4 . . . . . . 1 . . 2 . Weapon . | . . . . . . . . . . . . . . . . . . . Parts Attached 173 | 6 12 . 7 22 4 6 32 2 23 . 2 3 . 25 1 4 19 5 Power 21 | 1 1 . 1 2 . . 4 . 2 . . 1 . 4 1 1 3 . Engine 10 | 1 1 . 1 2 . . 1 . 1 . . 1 . 1 . 1 . . Core 7 | . . . . . . . 3 . 1 . . . . 3 . . . . Reactor 4 | . . . . . . . . . . . . . . . 1 . 3 . Propulsion 50 | 2 2 . 2 5 3 3 5 1 6 . . . . 10 . 1 5 5 Treads 10 | 1 1 . 1 3 3 . 1 . . . . . . . . . . . Leg 11 | . . . . . . . . . . . . . . 1 . . 5 5 Wheel 7 | 1 1 . 1 1 . 3 . . . . . . . . . . . . Hover 8 | . . . . . . . . . . . . . . 7 . 1 . . Flight 14 | . . . . 1 . . 4 1 6 . . . . 2 . . . . Utility 60 | 1 5 . 1 5 . 2 14 . 11 . 1 1 . 10 . 2 7 . Device 32 | . 4 . 1 2 . 1 5 . 6 . . 1 . 4 . 1 7 . Storage 5 | 1 1 . . . . 1 1 . . . . . . 1 . . . . Processor 9 | . . . . . . . 2 . 3 . 1 . . 2 . 1 . . Hackware 9 | . . . . . . . 4 . 2 . . . . 3 . . . . Protection 5 | . . . . 3 . . 2 . . . . . . . . . . . Artifact . | . . . . . . . . . . . . . . . . . . . Weapon 42 | 2 4 . 3 10 1 1 9 1 4 . 1 1 . 1 . . 4 . Energy Gun 7 | 2 2 . . 3 . . . . . . . . . . . . . . Energy Cannon 17 | . . . 2 4 . . 7 . . . . . . 1 . . 3 . Ballistic Gun 1 | . . . . 1 . . . . . . . . . . . . . . Ballistic Cannon 2 | . . . . . 1 . . . . . . . . . . . 1 . Launcher 5 | . 2 . . 1 . . . . 2 . . . . . . . . . Special Weapon 2 | . . . . . . 1 . 1 . . . . . . . . . . Impact Weapon 3 | . . . . 1 . . 1 . 1 . . . . . . . . . Slashing Weapon . | . . . . . . . . . . . . . . . . . . . Piercing Weapon 2 | . . . . . . . . . 1 . . 1 . . . . . . Special Melee Weapon 3 | . . . 1 . . . 1 . . . 1 . . . . . . . Unidentified Prototypes 14 | . . . . 6 . . 2 . 3 . 1 1 . 1 . . . . Corrupted Parts 2 | . . . . . . . 1 1 . . . . . . . . . . System Corruption 11 | . . . . . . . 3 8 . . . . . . . . . . Parts Lost 62 | . 3 . . 2 . . 5 . 9 2 . . . 23 1 2 15 . Power 12 | . 1 . . . . . 1 . 1 . . . . 4 1 1 3 . Propulsion 26 | . 2 . . 1 . . 2 . 5 2 . . . 11 . . 3 . Utility 15 | . . . . . . . 1 . 1 . . . . 6 . . 7 . Weapon 9 | . . . . 1 . . 1 . 2 . . . . 2 . 1 2 . Highest Loss Streak 9 | . 3 . . 1 . . 2 . 2 1 . . . 5 1 2 9 . To Critical Strikes . | . . . . . . . . . . . . . . . . . . . Average Backups 17 | 2 15 24 24 24 24 24 20 10 8 3 4 5 5 6 4 4 4 5 Power . | . . . . 1 2 2 . . . . . . . . . . . . Propulsion 3 | 1 2 3 2 4 6 6 3 . . . . . . . 2 2 2 2 Utility 7 | . 6 9 11 9 9 10 10 6 5 2 2 3 3 3 1 1 1 1 Weapon 4 | . 5 11 9 7 6 5 3 2 2 1 1 2 2 1 . . . 1 Tool/Special . | . . . . . . . . . . . . . . . . . . . Unused Backups 42 | . . . 3 8 2 1 18 1 4 . . . . 2 . . . 3 Power 4 | . . . . 2 . . 2 . . . . . . . . . . . Propulsion 5 | . . . . 1 1 . 1 . . . . . . . . . . 2 Utility 21 | . . . . 3 1 . 14 1 1 . . . . 1 . . . . Weapon 8 | . . . 3 2 . . 1 . 2 . . . . . . . . . Tool/Special 4 | . . . . . . 1 . . 1 . . . . 1 . . . 1 Average Slot Usage (%) 90 | . 98 100 94 98 99 99 94 100 72 74 72 77 81 71 42 48 76 1 Engine 7 | . 13 14 11 10 11 11 1 . . . . . 6 1 . . . . Core 1 | . . . . . . . 4 6 4 6 6 5 . 4 . . . . Treads 11 | . 13 14 11 12 28 24 8 . . . . . . . . . . . Wheel 8 | . 13 14 19 20 4 8 11 . . . . . . . . . . . Flight 4 | . . . . . . . 9 33 20 23 19 18 18 6 3 . . . Device 14 | . 13 14 19 18 11 10 17 13 14 20 18 16 18 11 . 3 16 . Storage 8 | . 14 14 11 11 11 11 6 6 4 . . . . 2 . . . . Processor 5 | . . . . . . . 4 6 4 20 24 25 25 19 16 20 10 . Hackware 4 | . . . . . . . 13 13 12 . . . . 5 11 11 9 . Protection 3 | . . . . 3 11 11 2 6 1 . . . . . . . . . Energy Gun 2 | . 23 . . 5 . . . . . . . . . . . . . . Energy Cannon 3 | . . . 14 12 6 . 5 . . . . . . . . . 8 . Launcher 3 | . 4 28 6 . . . . . . . . . . . . . . . Impact Weapon 2 | . . . . 1 4 11 2 5 1 . . . . . . . . . Special Melee Weapon 3 | . . . 1 . 4 11 2 6 4 . 2 6 6 2 . . . . Peak Build Rating 95 | 7 12 12 17 23 24 22 53 61 64 45 47 52 49 86 45 48 95 16 Average Rating 30 | 4 9 12 15 20 21 19 43 51 45 40 38 45 48 59 35 37 77 2 On Entrance 28 | . 7 12 12 17 20 19 22 51 61 45 35 35 49 49 37 28 43 1 Avg Prop Armor Cover (%) 12 | 16 12 11 9 9 13 9 14 . . . . . . 12 4 . 27 . Naked Turns 136 | . . . . . . . . . 38 . . . . . . . 10 88 Heaviest Build 116 | 13 93 92 98 105 108 100 116 25 30 14 9 14 13 37 11 7 52 . Greatest Support 84 | 20 10 10 20 22 60 66 40 30 30 21 13 13 13 55 11 31 84 48 Greatest Overweight (x) 10 | 1 9 9 9 9 8 10 9 . 2 1 . 1 . 7 . . 1 . Average Overweight (x) 1 | . 7 9 4 4 3 1 1 . . . . . . . . . . . Largest Inventory Capacity 25 | 8 25 25 25 25 25 25 25 10 10 5 5 5 5 10 5 5 5 5 Average Capacity 19 | 7 24 25 25 25 25 25 20 10 8 5 5 5 5 7 5 5 5 5 Most Carried 25 | 8 25 25 25 25 25 25 25 10 10 4 5 5 5 10 5 5 5 5 Average Carried 17 | 2 15 24 24 24 24 24 20 9 8 3 4 4 5 6 4 4 4 5 Final Capacity 25 | 8 25 25 25 25 25 25 10 10 5 5 5 5 5 5 5 5 5 5 Final Carried 25 | 8 25 25 25 25 25 25 10 10 3 4 5 5 5 4 5 4 5 5 Class Distribution -------------------- 56% | Mutant 19% | Hacker-Mutant 8% | Hacker-Sprinter 7% | Scavenger-Scout 5% | Scavenger-Mutant Dominant Class ---------------- Mutant | -10/Materials Mutant | -10/Mines Mutant | -9/Materials Mutant | -9/Storage Mutant | -9/Recycling Mutant | -9/Scraptown Hacker-Mutant | -6/Factory Hacker-Sprinter | -6/Waste Hacker-Sprinter | -6/Factory Scavenger-Ninja | -6/Lower Caves Scavenger-Scout | -6/Lower Caves Scavenger-Scout | -6/Zion Scavenger-Scout | -5/Proximity Caves Scavenger-Mutant | -5/Factory Hacker-Mutant | -5/Waste Hacker-Mutant | -5/Factory Scavenger-Mutant | -4/Factory Mutant | -4/Extension Resources | -11 -10 -10 -9 -9 -9 -9 -6 -6 -6 -6 -6 -6 -5 -5 -5 -5 -4 -4 ----------- Run | Yrd Mat Min Mat Sto Rec Scr Fac Was Fac Low Low Zio Pro Fac Was Fac Fac Ext Matter Collected 3945 | 260 206 224 80 478 176 171 1101 . 607 4 75 30 40 261 . 10 222 . Remotely . | . . . . . . . . . . . . . . . . . . . Salvage Created 7062 | 25 534 138 129 768 234 . 1284 . 685 50 86 . . 1979 . 10 1140 . Parts 315 | 7 24 6 7 54 17 . 38 . 27 4 1 . . 82 . 2 46 . Haulers Intercepted 10 | . 1 . 1 1 . . 2 . 4 . . . . 1 . . . . Recyclers Shooed 7 | . . . . . . . 2 . . . . . . 5 . . . . Parts Field Recycled . | . . . . . . . . . . . . . . . . . . . Retrieved Matter . | . . . . . . . . . . . . . . . . . . . Parts Self-Destructed 9 | . . . . . . . . . . 9 . . . . . . . . Prevented 6 | . . . . . . . . . . . . . 6 . . . . . Parts Restored . | . . . . . . . . . . . . . . . . . . . Kills | -11 -10 -10 -9 -9 -9 -9 -6 -6 -6 -6 -6 -6 -5 -5 -5 -5 -4 -4 ------- Run | Yrd Mat Min Mat Sto Rec Scr Fac Was Fac Low Low Zio Pro Fac Was Fac Fac Ext Combat Hostiles Destroyed 97 | . 15 8 1 15 3 . 13 . 9 1 . . . 16 . . 16 . Melee 22 | . . . . . . . . . 5 1 . . . 16 . . . . Guns 11 | . 9 . . 2 . . . . . . . . . . . . . . Cannons 38 | . . . 1 9 3 . 11 . . . . . . . . . 14 . AOE 19 | . 4 8 . 4 . . . . 3 . . . . . . . . . Classes Destroyed 16 | 1 6 . 1 2 1 . 2 . 1 . 1 . . . . . 1 . Worker 2 | . . . . 1 . . . . . . . . . 1 . . . . Builder 6 | . 1 . . 2 . . . . 2 . . . . . . . 1 . Tunneler 7 | 2 . . . . . . . . . . . . . 1 . 1 3 . Hauler 10 | . 1 . 1 1 . . 2 . 4 . . . . 1 . . . . Recycler 12 | . . . . . 1 . 3 . . . . . . 7 . . 1 . Minesweeper 1 | . . . . . . . . . . . 1 . . . . . . . Mechanic 1 | . . . . . . . . . 1 . . . . . . . . . Operator 5 | . 1 . 1 1 . . . . . . . . . 2 . . . . Watcher 5 | . 1 . . 1 . . . . . . . . . 2 . . 1 . Swarmer 29 | . 3 3 . 3 . . 1 . 8 . . . . 6 . . 5 . Grunt 29 | . 12 5 . 5 . . 1 . . . . . . 2 . . 4 . Brawler 2 | . . . . 1 . . . . . . . . . . . . 1 . Duelist 2 | . . . . . . . 1 . . . . . . 1 . . . . Sentry 16 | . . . 1 6 3 . 4 . . . . . . 2 . . . . Hunter 2 | . . . . . . . . . . . . . . . . . 2 . Programmer 17 | . . . . . . . 6 . 1 1 . . . 5 . . 4 . Best Kill Streak 6 | 2 3 3 1 3 1 . 2 . 5 1 1 . . 6 . 1 5 . Combat Bots Only 5 | . 3 3 1 3 1 . 2 . 5 1 . . . 5 . . 5 . Max Kills in Single Turn 3 | 2 3 3 1 3 1 . 1 . 3 1 1 . . 1 . 1 2 . Gunslinging . | . . . . . . . . . . . . . . . . . . . Exploded 3 | . 3 3 . 3 . . . . 3 . . . . . . . . . Melee 1 | . . . . . . . . . 1 1 . . . 1 . . . . Uniques/NPCs Destroyed . | . . . . . . . . . . . . . . . . . . . Combat | -11 -10 -10 -9 -9 -9 -9 -6 -6 -6 -6 -6 -6 -5 -5 -5 -5 -4 -4 -------- Run | Yrd Mat Min Mat Sto Rec Scr Fac Was Fac Low Low Zio Pro Fac Was Fac Fac Ext Hostile Shots Fired 920 | . 76 5 12 54 4 . 197 . 98 11 1 . 3 127 2 11 284 35 Missed 320 | . 19 2 2 18 2 . 89 . 37 5 1 . 1 31 1 5 94 13 Hits 600 | . 57 3 10 36 2 . 108 . 61 6 . . 2 96 1 6 190 22 Melee 9 | . . . . . . . 3 . 1 . . . . 3 1 . 1 . Projectile 591 | . 57 3 10 36 2 . 105 . 60 6 . . 2 93 . 6 189 22 AOE 2 | . . . . . . . . . . . . . . 2 . . . . Critical Strikes 15 | . . . . 2 . . 4 . . . . . . 6 . . 3 . Damage Taken 9632 | . 687 90 185 609 28 . 1479 . 933 96 . . 32 1909 43 125 2803 613 Core 2688 | . 155 . 38 77 . . 237 . 416 31 . . 32 504 43 . 565 590 Absorbed by Shields 107 | . . . . . . . . . . . . . . . . . 107 . Regen/Repaired (Parts) 329 | . . . . . . 166 158 . . . . 5 . . . . . . Core Remaining (%) 53 | 100 . 38 . . . 71 . . . . . . 15 . . 45 . . Volleys Fired 286 | 1 62 5 6 42 4 . 83 . 18 . 7 . . . . . 58 . Largest 2 | 2 2 2 2 2 2 . 2 . 1 . 1 . . . . . 2 . Hottest 196 | 90 130 66 112 112 108 . 150 . 43 . 35 . . . . . 196 . Shots Fired 472 | 2 125 10 12 71 9 . 109 . 17 . 8 . . . . . 109 . Gun 134 | 2 113 . . 19 . . . . . . . . . . . . . . Cannon 314 | . . . 12 51 9 . 109 . 16 . 8 . . . . . 109 . Launcher 24 | . 12 10 . 1 . . . . 1 . . . . . . . . . Special . | . . . . . . . . . . . . . . . . . . . Kinetic 17 | . . . . . 5 . 11 . . . . . . . . . 1 . Thermal 323 | 2 113 . . 7 4 . 65 . 16 . 8 . . . . . 108 . Explosive 24 | . 12 10 . 1 . . . . 1 . . . . . . . . . Electromagnetic 108 | . . . 12 63 . . 33 . . . . . . . . . . . Robot Hit Streak 24 | 1 13 1 7 10 6 . 12 . 4 . . . . . . . 24 . Robot Miss Streak 4 | 1 4 . 1 3 1 . 2 . 1 . . . . . . . 2 . Penetration Max . | . . . . . . . . . . . . . . . . . . . Secondary Targets 3 | . 3 . . . . . . . . . . . . . . . . . Max Gunslinging Chain 1 | . 1 . . . . . . . . . . . . . . . . . Shots Hit Robots 403 | 1 80 1 9 49 9 . 74 . 25 3 4 . . 65 . 1 82 . Core Hits 187 | 2 27 12 4 33 4 . 24 . 13 1 1 . . 30 . . 36 . Critical Kills 4 | . . . . . . . 2 . . . . . . . . . 2 . Critical Parts Destroyed 6 | . . . . . . . 2 . 4 . . . . . . . . . Critical Strikes 26 | . 4 . . . . . 4 . 4 . 2 . . 10 . . 2 . Burn 4 | . 4 . . . . . . . . . . . . . . . . . Meltdown 3 | . . . . . . . 1 . . . . . . . . . 2 . Destroy 3 | . . . . . . . 3 . . . . . . . . . . . Smash 4 | . . . . . . . . . 4 . . . . . . . . . Impale 12 | . . . . . . . . . . . 2 . . 10 . . . . Melee Attacks 235 | . . . 1 9 4 . 67 . 42 8 5 1 2 92 . 4 . . Impact 97 | . . . . 9 . . 66 . 22 . . . . . . . . . Slashing . | . . . . . . . . . . . . . . . . . . . Piercing 129 | . . . . . . . . . 18 8 5 1 2 91 . 4 . . Sneak Attacks 35 | . . . 1 . 4 . 1 . 9 1 1 . . 17 . 1 . . Combat Hostiles 1 | . . . . . . . . . . 1 . . . . . . . . Follow-up Attacks . | . . . . . . . . . . . . . . . . . . . Damage Inflicted 15066 | 23 1434 531 171 1398 105 . 2416 . 1962 208 331 . . 3422 . 91 2974 . Guns 1291 | 23 992 . . 276 . . . . . . . . . . . . . . Cannons 6300 | . . . 171 700 105 . 2279 . 97 . . . . . . . 2948 . Explosions 1708 | . 442 531 . 422 . . . . 313 . . . . . . . . . Melee 5729 | . . . . . . . 137 . 1552 208 331 . . 3422 . 79 . . Ramming 38 | . . . . . . . . . . . . . . . . 12 26 . Kinetic 264 | . . . . . 45 . 180 . . . . . . . . . 39 . Thermal 5665 | 23 992 . . 324 60 . 1169 . 188 . . . . . . . 2909 . Explosive 1374 | . 442 531 . 179 . . . . 222 . . . . . . . . . Electromagnetic 1996 | . . . 171 895 . . 930 . . . . . . . . . . . Impact 798 | . . . . . . . 137 . 661 . . . . . . . . . Slashing . | . . . . . . . . . . . . . . . . . . . Piercing 4931 | . . . . . . . . . 891 208 331 . . 3422 . 79 . . Highest Corruption 18 | . 2 2 . 7 7 . 4 18 18 16 16 16 . 8 16 16 3 3 Average Corruption 6 | . 2 2 . 5 7 . 3 8 14 15 16 16 . 4 10 16 2 3 Corruption Purged 13 | . . . . . . . . . 5 . . . . 8 . . . . Corruption Blocked . | . . . . . . . . . . . . . . . . . . . Effects 258 | . 15 17 . 36 44 . 23 4 39 19 11 2 . 18 6 15 8 1 Message Errors 54 | . 2 6 . 8 6 . 7 1 11 3 2 . . 3 . 4 1 . Matter Fused 57 | . 3 . . 13 15 . 7 . 8 1 1 . . 7 . 2 . . Heat Flow Errors 39 | . 4 3 . 2 5 . 3 . 4 5 2 . . 4 3 3 . 1 Energy Discharges 37 | . 1 3 . 7 7 . 3 . 3 3 2 2 . 3 . . 3 . Parts Rejected 1 | . . . . . . . . . . . . . . . . . 1 . Parts Fused 1 | . . . . . . . . . . . . . . 1 . . . . Data Loss (minor) 32 | . 4 2 . 3 5 . 1 2 6 3 3 . . . 1 1 1 . Data Loss (major) 10 | . . 2 . . 4 . . . 1 1 . . . . . 1 1 . Misfires 7 | . 1 . . 3 1 . . . . . 1 . . . . . 1 . Alerts 10 | . . 1 . . 1 . 2 . 2 3 . . . . . 1 . . Misdirections 9 | . . . . . . . . 1 3 . . . . . 2 3 . . Weapon Failures 1 | . . . . . . . . . 1 . . . . . . . . . Overload Shots . | . . . . . . . . . . . . . . . . . . . Overflow Damage 1909 | . . 2 8 16 . . 79 . 661 47 339 . . 627 . 39 91 . Projectiles 178 | . . . 8 . . . 79 . . . . . . . . . 91 . Explosions 46 | . . 2 . 16 . . . . 28 . . . . . . . . . Melee 1685 | . . . . . . . . . 633 47 339 . . 627 . 39 . . Knockbacks 4 | . . . . . . . 4 . . . . . . . . . . . Impact . | . . . . . . . . . . . . . . . . . . . Kinetic 4 | . . . . . . . 4 . . . . . . . . . . . Secondary . | . . . . . . . . . . . . . . . . . . . Self-Inflicted Damage 254 | . . 51 . 96 . . . . 101 . . . . . . 6 . . Shots 6 | . . 1 . 3 . . . . 2 . . . . . . . . . Rammed 1 | . . . . . . . . . . . . . . . . 1 . . Targets Rammed 8 | . . . . . . . . . . . . . . . . 1 7 . Kicked 7 | . . . . . . . . . . . . . . . . . 7 . Crushed . | . . . . . . . . . . . . . . . . . . . Highest Temperature 362 | 30 345 181 2 150 245 . 255 . 232 241 221 . . 362 197 156 335 69 Average Temperature 80 | 17 87 46 1 37 105 . 69 . 82 106 104 . . 91 84 77 73 38 Received Heat Transfer 1680 | . 345 24 54 219 9 . 288 . 164 9 . . . 282 . 57 139 90 Effects 4 | . 3 . . . . . . . . 1 . . . . . . . . Energy Bleed 1 | . . . . . . . . . . 1 . . . . . . . . Interference 3 | . 3 . . . . . . . . . . . . . . . . . Siege Activations . | . . . . . . . . . . . . . . . . . . . Martial Activations . | . . . . . . . . . . . . . . . . . . . Shielding Activations . | . . . . . . . . . . . . . . . . . . . Robots Disrupted 1 | . . . . 1 . . . . . . . . . . . . . . Combat Hostiles 1 | . . . . 1 . . . . . . . . . . . . . . Robots Corrupted 5 | . . . . . . . 3 . 2 . . . . . . . . . Combat Hostiles 2 | . . . . . . . 1 . 1 . . . . . . . . . Parts Fried 16 | . . . 1 3 . . 11 . 1 . . . . . . . . . Impact Corruptions 8 | . . . . . . . . . 8 . . . . . . . . . Robots Melted 6 | . 2 . . . . . 1 . . . . . . . . . 3 . Combat Hostiles 5 | . 2 . . . . . 1 . . . . . . . . . 2 . Parts Melted 23 | . 3 . . 2 . . 3 . 1 . . . . . . . 14 . Heat Transferred 9367 | 62 2808 . . 498 111 . 1438 . 200 . . . . . . . 4250 . Parts Sabotaged . | . . . . . . . . . . . . . . . . . . . Parts Stolen . | . . . . . . . . . . . . . . . . . . . Parts Stripped . | . . . . . . . . . . . . . . . . . . . Power Chain Reactions 3 | . . . . 3 . . . . . . . . . . . . . . Alert | -11 -10 -10 -9 -9 -9 -9 -6 -6 -6 -6 -6 -6 -5 -5 -5 -5 -4 -4 ------- Run | Yrd Mat Min Mat Sto Rec Scr Fac Was Fac Low Low Zio Pro Fac Was Fac Fac Ext Maximum Alert Level 1 | . . . . 1 . . 1 . 1 . . . . 1 . . 1 . Low Security (%) 92 | 100 100 100 100 93 100 . 88 100 85 . . . . 98 100 100 29 100 Level 1 7 | . . . . 6 . . 11 . 14 . . . . 1 . . 70 . Level 2 . | . . . . . . . . . . . . . . . . . . . Level 3 . | . . . . . . . . . . . . . . . . . . . Level 4 . | . . . . . . . . . . . . . . . . . . . Level 5 . | . . . . . . . . . . . . . . . . . . . High Security . | . . . . . . . . . . . . . . . . . . . Max Security . | . . . . . . . . . . . . . . . . . . . Peak Influence 383 | 10 192 148 69 221 118 . 348 96 383 . . . . 209 71 45 309 83 Initial 91 | . . 69 . 28 77 . . 91 60 . . . . . 71 . 16 83 Average 68 | 2 35 30 6 127 26 . 87 86 88 . . . . 52 38 2 205 62 Influence Increases 5510 | 10 574 279 149 767 267 . 973 15 757 105 125 . . 871 . 76 542 . Destroy 0b10 Robot/C 2120 | . 300 160 80 420 60 . 260 . 180 20 . . . 320 . . 320 . Destroy 0b10 Robot/NC 245 | 10 20 . 10 35 5 . 25 . 35 . 5 . . 65 . 5 30 . Destroy Leader 570 | . 64 30 42 134 . . 104 . 38 10 . . . 86 . . 62 . Allied During Kill 31 | . . 7 8 16 . . . . . . . . . . . . . . Successful Hack 257 | . 22 . 9 35 18 . 87 . 28 . . . . 51 . 7 . . Select Force Hacks 210 | . 30 . . . 180 . . . . . . . . . . . . . Disable Machine 330 | . 30 15 . 105 . . 90 . 30 . . . . 45 . 15 . . Destroy Structure 367 | . 78 67 . 22 4 . 62 . 56 . . . . 34 . 4 40 . Partial Spotted 195 | . . . . . . . 60 15 105 . . . . 15 . . . . Lose Combat Pursuer 1185 | . 30 . . . . . 285 . 285 75 120 . . 255 . 45 90 . Influence Decreases 5477 | 10 397 456 80 637 466 . 713 189 466 341 158 108 . 666 204 42 407 137 Entered New Map 984 | . . 108 . 41 122 . . 169 26 141 28 108 . . 134 1 19 87 Time Decay 3668 | 10 367 348 80 556 344 . 473 20 350 180 130 . . 395 60 41 264 50 Search Patrol Dispatched 200 | . . . . . . . 200 . . . . . . . . . . . Lost Part 550 | . 30 . . 20 . . 40 . 90 20 . . . 226 10 . 114 . Lost Ally 34 | . . . . 20 . . . . . . . . . 4 . . 10 . Purge Threat 41 | . . . . . . . . . . . . . . 41 . . . . Squads Dispatched 49 | . 4 . 1 3 . . 19 . 9 . . . . 8 . . 4 1 Investigation 18 | . 2 . . 2 . . 8 . 3 . . . . 2 . . 1 . Extermination 15 | . . . . . . . 7 . 3 . . . . 4 . . 1 . Reinforcement 13 | . 2 . 1 1 . . 1 . 3 . . . . 2 . . 2 1 Assault . | . . . . . . . . . . . . . . . . . . . Garrison 3 | . . . . . . . 3 . . . . . . . . . . . Intercept . | . . . . . . . . . . . . . . . . . . . Searches Triggered 2 | . . . . . . . 2 . . . . . . . . . . . Construction Impeded . | . . . . . . . . . . . . . . . . . . . Haulers Reinforced 4 | . . . . . . . . . 1 . . . . 1 . . 2 . Active Scanning Responses . | . . . . . . . . . . . . . . . . . . . Cargo Convoy Interrupts . | . . . . . . . . . . . . . . . . . . . Stealth | -11 -10 -10 -9 -9 -9 -9 -6 -6 -6 -6 -6 -6 -5 -5 -5 -5 -4 -4 --------- Run | Yrd Mat Min Mat Sto Rec Scr Fac Was Fac Low Low Zio Pro Fac Was Fac Fac Ext Distress Signals 11 | . 1 . . 1 . . 3 . 1 . . . . 4 . . 1 . Communications Jammed . | . . . . . . . . . . . . . . . . . . . Distress Signals . | . . . . . . . . . . . . . . . . . . . Times Spotted 277 | . 33 6 7 23 2 . 52 6 31 6 4 . 2 53 6 3 33 10 Peak Tracking Total 10 | . 4 3 3 3 1 . 10 6 7 4 4 . 2 9 6 3 6 9 Tactical Retreats 42 | . 2 . . . . . 10 . 10 3 2 . . 10 1 1 3 . Traps | -11 -10 -10 -9 -9 -9 -9 -6 -6 -6 -6 -6 -6 -5 -5 -5 -5 -4 -4 ------- Run | Yrd Mat Min Mat Sto Rec Scr Fac Was Fac Low Low Zio Pro Fac Was Fac Fac Ext Traps Triggered 15 | . 2 . 1 6 . . 3 . 1 . . . . 1 . . 1 . Indirectly . | . . . . . . . . . . . . . . . . . . . Trap Hack Attempts 98 | . . . . 73 . . 25 . . . . . . . . . . . Triggered . | . . . . . . . . . . . . . . . . . . . Disarmed . | . . . . . . . . . . . . . . . . . . . Reprogrammed 9 | . . . . 5 . . 4 . . . . . . . . . . . Reused 2 | . . . . . . . . . . . . . 2 . . . . . Traps Extracted 8 | . . . . 4 . . 4 . . . . . . . . . . . Installed 2 | . . . . . . . . . . . . . 2 . . . . . Triggered 2 | . . . . . . . . . . . . . 2 . . . . . Most Traps Carried 4 | . . . . 4 4 4 4 4 4 4 4 4 4 2 . . . . Machines | -11 -10 -10 -9 -9 -9 -9 -6 -6 -6 -6 -6 -6 -5 -5 -5 -5 -4 -4 ---------- Run | Yrd Mat Min Mat Sto Rec Scr Fac Was Fac Low Low Zio Pro Fac Was Fac Fac Ext Machines Disabled 22 | . 2 1 . 7 . . 6 . 2 . . . . 3 . 1 . . Max in Single Turn 1 | . 1 1 . 1 . . 1 . 1 . . . . 1 . 1 . . Garrison Access 4 | . . . . . . . 2 . 1 . . . . 1 . . . . Machines Repaired . | . . . . . . . . . . . . . . . . . . . Machines Dismantled . | . . . . . . . . . . . . . . . . . . . Machines Sabotaged . | . . . . . . . . . . . . . . . . . . . Overloaded Fab Kills . | . . . . . . . . . . . . . . . . . . . Hacking | -11 -10 -10 -9 -9 -9 -9 -6 -6 -6 -6 -6 -6 -5 -5 -5 -5 -4 -4 --------- Run | Yrd Mat Min Mat Sto Rec Scr Fac Was Fac Low Low Zio Pro Fac Was Fac Fac Ext Machines Accessed 90 | . 8 . 3 7 14 5 27 . 10 . 2 . . 12 . 1 1 . Terminals 47 | . 6 . 3 7 6 . 11 . 4 . . . . 8 . 1 1 . Fabricators 3 | . . . . . . . 2 . 1 . . . . . . . . . Repair Stations 6 | . . . . . . . 4 . 1 . . . . 1 . . . . Recycling Units 19 | . 2 . . . 6 . 7 . 2 . . . . 2 . . . . Scanalyzers 2 | . . . . . . . 1 . 1 . . . . . . . . . Garrison Access 4 | . . . . . . . 2 . 1 . . . . 1 . . . . Total Hacks 229 | . 21 . 5 20 35 32 56 . 21 . 2 . . 32 . 3 2 . Successful 165 | . 17 . 4 10 25 32 43 . 10 . 2 . . 17 . 3 2 . Failed 64 | . 4 . 1 10 10 . 13 . 11 . . . . 15 . . . . Catastrophic 12 | . . . . 3 . . 5 . 3 . . . . 1 . . . . Database Lockouts . | . . . . . . . . . . . . . . . . . . . Manual 88 | . 16 . 3 9 20 . 17 . 5 . . . . 14 . 2 2 . Terminals 118 | . 18 . 5 20 18 . 20 . 7 . . . . 25 . 3 2 . Fabricators 7 | . . . . . . . 4 . 3 . . . . . . . . . Repair Stations 12 | . . . . . . . 8 . 3 . . . . 1 . . . . Recycling Units 37 | . 3 . . . 11 . 14 . 4 . . . . 5 . . . . Scanalyzers 10 | . . . . . . . 7 . 3 . . . . . . . . . Garrison Access 5 | . . . . . . . 3 . 1 . . . . 1 . . . . Terminal Hacks 77 | . 5 . 2 6 9 32 10 . 1 . 2 . . 9 . 1 . . Record 30 | . . . . . 6 23 . . . . 1 . . . . . . . Part Schematic 3 | . 1 . . . 1 . 1 . . . . . . . . . . . Robot Analysis 11 | . . . . . . 8 2 . . . . . . 1 . . . . Open Door 3 | . . . . 2 . . . . . . 1 . . . . . . . Branch Access Points 3 | . . . 1 . . . 1 . . . . . . 1 . . . . Terminal Index 3 | . 1 . . 1 . . . . . . . . . 1 . . . . Unreport Threat 1 | . . . . . . . . . . . . . . 1 . . . . Locate Traps 9 | . 2 . . 1 . . 4 . . . . . . 2 . . . . Maintenance Status 1 | . . . . . . . . . . . . . . 1 . . . . Security Status 1 | . . . . . . . . . . . . . . 1 . . . . Patrol Status 2 | . . . . 1 . . . . 1 . . . . . . . . . Extermination Status 1 | . . . . . . . . . . . . . . 1 . . . . Hauler Manifests 6 | . 1 . . 1 1 . 2 . . . . . . . . 1 . . Zone Layout 2 | . . . 1 . 1 . . . . . . . . . . . . . Proto ID Catalog 1 | . . . . . . 1 . . . . . . . . . . . . Fabricator Hacks 5 | . . . . . . . 3 . 2 . . . . . . . . . Network Status 1 | . . . . . . . 1 . . . . . . . . . . . Load Schematic 2 | . . . . . . . 1 . 1 . . . . . . . . . Build 2 | . . . . . . . 1 . 1 . . . . . . . . . Repair Station Hacks 8 | . . . . . . . 7 . 1 . . . . . . . . . Scan Component 5 | . . . . . . . 4 . 1 . . . . . . . . . Repair 3 | . . . . . . . 3 . . . . . . . . . . . Recycling Unit Hacks 14 | . 2 . . . 4 . 5 . 1 . . . . 2 . . . . Report Inventory 13 | . 2 . . . 4 . 4 . 1 . . . . 2 . . . . Retrieve Components 1 | . . . . . . . 1 . . . . . . . . . . . Scanalyzer 9 | . . . . . . . 7 . 2 . . . . . . . . . Insert Component 5 | . . . . . . . 4 . 1 . . . . . . . . . Analyze 4 | . . . . . . . 3 . 1 . . . . . . . . . Garrison Access Hacks 4 | . . . . . . . 2 . 1 . . . . 1 . . . . Seal Access 4 | . . . . . . . 2 . 1 . . . . 1 . . . . Unauthorized Hacks 48 | . 10 . 2 4 12 . 9 . 2 . . . . 5 . 2 2 . Terminals 31 | . 9 . 2 4 6 . 1 . . . . . . 5 . 2 2 . Assimilate 4 | . 1 . . . . . . . . . . . . 2 . . 1 . Botnet 8 | . 3 . . 2 . . . . . . . . . 2 . 1 . . Operators 6 | . 2 . . 1 . . . . . . . . . 1 . 1 1 . Skim 13 | . 3 . 2 1 6 . 1 . . . . . . . . . . . Fabricators 1 | . . . . . . . 1 . . . . . . . . . . . Report 1 | . . . . . . . 1 . . . . . . . . . . . Repair Stations . | . . . . . . . . . . . . . . . . . . . Recycling Units 16 | . 1 . . . 6 . 7 . 2 . . . . . . . . . Recyclers 1 | . . . . . . . 1 . . . . . . . . . . . Tunnel 7 | . 1 . . . 6 . . . . . . . . . . . . . Fedlink 8 | . . . . . . . 6 . 2 . . . . . . . . . Scanalyzers . | . . . . . . . . . . . . . . . . . . . Garrison Access . | . . . . . . . . . . . . . . . . . . . Data Cores Recovered . | . . . . . . . . . . . . . . . . . . . Used . | . . . . . . . . . . . . . . . . . . . Hacking Detections 51 | . 5 . 1 5 4 . 17 . 8 . . . . 10 . . 1 . Full Trace Events 7 | . . . . 2 . . 2 . 1 . . . . 2 . . . . Feedback Events . | . . . . . . . . . . . . . . . . . . . Feedback Blocked . | . . . . . . . . . . . . . . . . . . . Robot Schematics Acquired 4 | . . . . . . . . . . . . 4 . . . . . . Robots Built . | . . . . . . . . . . . . . . . . . . . Authchips . | . . . . . . . . . . . . . . . . . . . Time . | . . . . . . . . . . . . . . . . . . . Total Robot Build Rating . | . . . . . . . . . . . . . . . . . . . Part Schematics Acquired 22 | . 1 . . . 1 . 4 . 1 . . 15 . . . . . . Parts Built 4 | . . . . . . . 2 . 2 . . . . . . . . . Authchips . | . . . . . . . . . . . . . . . . . . . Time 164 | . . . . . . . 106 . 58 . . . . . . . . . Total Part Build Rating 26 | . . . . . . . 12 . 14 . . . . . . . . . Part Studies Acquired . | . . . . . . . . . . . . . . . . . . . Parts Repaired 3 | . . . . . . . 3 . . . . . . . . . . . Time 143 | . . . . . . . 143 . . . . . . . . . . . Parts Recycled . | . . . . . . . . . . . . . . . . . . . Recycled Matter . | . . . . . . . . . . . . . . . . . . . Retrieved Matter . | . . . . . . . . . . . . . . . . . . . Retrieved Components 3 | . . . . . . . 3 . . . . . . . . . . . Parts Scanalyzed 4 | . . . . . . . 3 . 1 . . . . . . . . . Part Schematics Acquired 4 | . . . . . . . 3 . 1 . . . . . . . . . Parts Damaged . | . . . . . . . . . . . . . . . . . . . Bothacking | -11 -10 -10 -9 -9 -9 -9 -6 -6 -6 -6 -6 -6 -5 -5 -5 -5 -4 -4 ------------ Run | Yrd Mat Min Mat Sto Rec Scr Fac Was Fac Low Low Zio Pro Fac Was Fac Fac Ext Used RIF Installer . | . . . . . . . . . . . . . . . . . . . Robots Hacked 6 | . . . 1 . 2 . 1 . 1 . . . . 1 . . . . Non-combat 5 | . . . . . 2 . 1 . 1 . . . . 1 . . . . Combat 1 | . . . 1 . . . . . . . . . . . . . . . Robot Hacks Applied 7 | . . . 1 . 2 . 1 . 2 . . . . 1 . . . . parse_system 2 | . . . 1 . 1 . . . . . . . . . . . . . find_chute 1 | . . . . . . . . . . . . . . 1 . . . . find_recycling 1 | . . . . . 1 . . . . . . . . . . . . . find_station 2 | . . . . . . . . . 2 . . . . . . . . . check_alert 1 | . . . . . . . 1 . . . . . . . . . . . Relay Couplers Released . | . . . . . . . . . . . . . . . . . . . Fabnet Peak Effective % . | . . . . . . . . . . . . . . . . . . . Robots Rewired . | . . . . . . . . . . . . . . . . . . . Allies Hacked . | . . . . . . . . . . . . . . . . . . . Hacks Repelled . | . . . . . . . . . . . . . . . . . . . Allies | -11 -10 -10 -9 -9 -9 -9 -6 -6 -6 -6 -6 -6 -5 -5 -5 -5 -4 -4 -------- Run | Yrd Mat Min Mat Sto Rec Scr Fac Was Fac Low Low Zio Pro Fac Was Fac Fac Ext Total Allies 4 | . . 1 . . . . . . . . . . . 2 . . 1 . Largest Group 1 | . . 1 1 1 . . . . . . . . . 1 . . 1 . Highest-Rated Group 31 | . . 31 31 31 . . . . . . . . . 10 . . 10 . Highest-Rated Ally 31 | . . 31 31 31 . . . . . . . . . 10 . . 10 . Total Orders . | . . . . . . . . . . . . . . . . . . . Ally Attacks 32 | . . . 11 21 . . . . . . . . . . . . . . Total Damage 508 | . . . 190 318 . . . . . . . . . . . . . . Kills 10 | . . . 3 7 . . . . . . . . . . . . . . Allies Corrupted . | . . . . . . . . . . . . . . . . . . . Allies Melted . | . . . . . . . . . . . . . . . . . . . Intel | -11 -10 -10 -9 -9 -9 -9 -6 -6 -6 -6 -6 -6 -5 -5 -5 -5 -4 -4 ------- Run | Yrd Mat Min Mat Sto Rec Scr Fac Was Fac Low Low Zio Pro Fac Was Fac Fac Ext Active Infowar (turns) 11154 | . 1167 1530 458 1072 . . 3501 55 910 376 262 229 518 696 . 207 173 . Sensors 6011 | . . . . . . . 3156 55 752 376 262 229 518 390 . 207 66 . IFF 4 | . . . . . . . 4 . . . . . . . . . . . Structural 5189 | . . . . . . . 2636 . 472 376 262 229 518 696 . . . . Seismic 8481 | . 1167 1530 458 1072 . . 3064 55 617 . . . . 411 . . 107 . T.N.C. 4294 | . . . . . . . 2479 . 172 376 262 229 518 258 . . . . Jamming 1 | . . . . . . . . . 1 . . . . . . . . . Robot Analysis Total 11 | . . . . . . 8 2 . . . . . . 1 . . . . Derelict Logs Recovered 7 | . . 1 . . . . . . . 1 2 2 1 . . . . . Drone Launches . | . . . . . . . . . . . . . . . . . . . Drone Recoveries . | . . . . . . . . . . . . . . . . . . . Exploration | -11 -10 -10 -9 -9 -9 -9 -6 -6 -6 -6 -6 -6 -5 -5 -5 -5 -4 -4 ------------- Run | Yrd Mat Min Mat Sto Rec Scr Fac Was Fac Low Low Zio Pro Fac Was Fac Fac Ext Turns Passed 18288 | 82 1854 1530 458 1638 1555 2812 3511 55 1013 376 262 229 518 1290 134 266 605 100 Spaces Moved 16530 | 71 818 693 256 773 652 1463 3653 164 1992 712 707 753 1199 1585 234 315 310 180 Core 309 | 12 . . . . . 1 . . 74 . . . . 1 . . 46 175 Treads 1263 | 5 . . . . 389 869 . . . . . . . . . . . . Legs 323 | . . . . . . . . . . . . . . 109 . . 209 5 Wheels 4869 | 54 818 693 256 773 263 593 1419 . . . . . . . . . . . Hover 1072 | . . . . . . . . . . . . . . 597 105 315 55 . Flight 8694 | . . . . . . . 2234 164 1918 712 707 753 1199 878 129 . . . Fastest Speed 23 | 50 95 215 140 140 210 116 28 28 23 23 29 29 29 28 45 61 50 50 Average Speed 89 | 87 190 215 153 153 227 190 71 28 34 30 29 29 29 50 56 67 100 51 Slowest Speed 550 | 160 215 215 215 215 240 550 225 31 180 109 29 109 29 400 70 70 190 90 Overloaded Moves . | . . . . . . . . . . . . . . . . . . . Propulsion Burnouts . | . . . . . . . . . . . . . . . . . . . Robots Hopped 43 | . . . . . . . 28 . 7 1 . . . 7 . . . . Potential Cave-ins . | . . . . . . . . . . . . . . . . . . . Cave-ins Triggered . | . . . . . . . . . . . . . . . . . . . Exploration Rate (%) 63 | 4 96 99 24 96 99 91 68 84 45 71 88 84 85 46 86 5 7 30 Regions Visited 18 Branch Regions 9 Pre-discovered Areas 11 | . 1 1 . 1 6 . 1 . . . . 1 . . . . . . Known Exits Taken 8 | . . . 1 . . . . . 1 1 1 1 1 . . 1 1 . Unknown Exits Taken 6 | 1 1 1 . 1 1 1 . . . . . . . . . . . . Scrap Searched 14 | . . 2 . . . 6 . . . 2 1 2 1 . . . . . Spaces Dug 138 | . 14 26 . 1 . . 47 . 22 1 5 . 2 17 . 2 1 . Terrain Destroyed 379 | . 75 92 . 19 4 . 61 . 74 1 9 . 2 17 . 2 23 . Melee 74 | . . . . 1 . . 36 . 14 1 1 . 2 17 . 2 . . Projectile 73 | . . . . . 4 . 25 . 13 . 8 . . . . . 23 . AOE 232 | . 75 92 . 18 . . . . 47 . . . . . . . . . Terrain Rammed . | . . . . . . . . . . . . . . . . . . . Walls Destroyed . | . . . . . . . . . . . . . . . . . . . Machines Disabled . | . . . . . . . . . . . . . . . . . . . Actions | -11 -10 -10 -9 -9 -9 -9 -6 -6 -6 -6 -6 -6 -5 -5 -5 -5 -4 -4 --------- Run | Yrd Mat Min Mat Sto Rec Scr Fac Was Fac Low Low Zio Pro Fac Was Fac Fac Ext Total 18974 | 85 984 726 310 1142 712 1494 4298 173 2200 857 745 759 1363 1864 235 357 485 185 Wait 1308 | . 73 21 24 160 37 . 322 . 90 138 13 . 159 152 . 33 86 . Move 16434 | 70 817 692 255 772 651 1462 3600 163 1977 709 706 752 1198 1574 233 314 309 180 Hop 37 | . . . . . . . 25 . 7 1 . . . 4 . . . . Pick Up 111 | 8 19 4 8 15 2 6 36 2 3 . . . . 6 1 . 1 . Fast Attach 125 | 6 1 . . 7 1 9 13 2 26 . 3 3 . 24 1 4 20 5 Attach 48 | . 3 . 2 3 1 . 17 1 10 . 5 1 . 3 . 1 1 . Detach 29 | . . . . 1 1 1 4 . 9 1 6 1 . 3 . . 2 . Swap 104 | . 8 . 6 27 7 1 45 . 7 . . . 2 1 . . . . Drop 126 | . 1 4 8 25 4 15 46 5 11 . . 1 . 5 . . 1 . Fire 286 | 1 62 5 6 42 4 . 83 . 18 . 7 . . . . . 58 . Melee 235 | . . . 1 9 4 . 67 . 42 8 5 1 2 92 . 4 . . Ram 1 | . . . . . . . . . . . . . . . . 1 . . Kick 7 | . . . . . . . . . . . . . . . . . 7 . Crush . | . . . . . . . . . . . . . . . . . . . Escape Stasis 23 | . . . . 8 . . 15 . . . . . . . . . . . Rewire . | . . . . . . . . . . . . . . . . . . . Trap 100 | . . . . 73 . . 25 . . . . . 2 . . . . . Miscellaneous . | . . . . . . . . . . . . . . . . . . . Route ------- -11/Scrapyard -10/Materials (discovered 4 exits: *Mat x3 / [*Min]) -10/Mines (discovered 4 exits: *Mat x2 / [*Exi] / [*Sub]) -9/Materials (discovered 2 exits: Min / *Sto) -9/Storage (discovered 2 exits: [*Mat] / *Rec) -9/Recycling (discovered 2 exits: [*Fac] / *Scr) -9/Scraptown (discovered 2 exits: *Fac x2) -6/Factory (discovered 5 exits: *Fac x3 / *Low x2) -6/Waste -6/Factory (discovered 3 exits: *Fac / *Low x2) -6/Lower Caves -6/Lower Caves (discovered 2 exits: *Fac / *Zio) -6/Zion -5/Proximity Caves -5/Factory (discovered 3 exits: *Fac / *Upp x2) -5/Waste -5/Factory -4/Factory -4/Extension History --------- Turn | Location | Event 5 | -11/Scrapyard | Discovered new exit (range 15) 83 | -11/Scrapyard | Entered Materials 318 | -10/Materials | Build established: Mutant 968 | -10/Materials | Discovered new exit (range 5) 1214 | -10/Materials | Core integrity fell below 50% 1265 | -10/Materials | Lost 3 parts (1p2n) 1440 | -10/Materials | Discovered new exit (range 10) 1823 | -10/Materials | Discovered new exit (range 10) 1871 | -10/Materials | Discovered new exit (range 16) 1937 | -10/Materials | Entered Mines 1962 | -10/Mines | Met a Derelict bent on vengeance 1994 | -10/Mines | Escorted by a lone wolf Derelict 2258 | -10/Mines | Learned location of Zion (-6) 2303 | -10/Mines | A weapon hastily lodged in a ceiling crevice suddenly fell to the ground 2412 | -10/Mines | Discovered new exit (range 14) 2823 | -10/Mines | Discovered new exit (range 14) 3259 | -10/Mines | Deemed a non-threat by the Exiles lab entrance 3261 | -10/Mines | Discovered new exit (range 5) 3330 | -10/Mines | Discovered new exit (range 14) 3467 | -10/Mines | Entered Materials 3467 | -9/Materials | Accompanied by 1 ally 3467 | -9/Materials | Evolved 2 slots: Propulsion x1, Utility x1 3562 | -9/Materials | Identified exit to Mines 3562 | -9/Materials | Identified exit to Storage 3925 | -9/Materials | Entered Storage 3925 | -9/Storage | Accompanied by 1 ally 4447 | -9/Storage | Discovered new exit (range 14) 5555 | -9/Storage | Used back door to open Recycling access 5555 | -9/Storage | Discovered new exit (range 5) 5563 | -9/Storage | Entered Recycling 6398 | -9/Recycling | Discovered new exit (range 10) 6689 | -9/Recycling | Scanned before Scraplab entrance 6723 | -9/Recycling | Learned Materials security intel 6737 | -9/Recycling | Entered Scraplab 6773 | -9/Recycling | Learned Materials trap positions 6812 | -9/Recycling | Learned 2 Storage zone layouts 6862 | -9/Recycling | Learned location of 1 exit from Storage 6932 | -9/Recycling | Learned Materials stockpile data 7114 | -9/Recycling | Discovered new exit (range 3) 7118 | -9/Recycling | Entered Scraptown 7118 | -9/Scraptown | System corruption cleaned by C-Scrubber 7908 | -9/Scraptown | Visited The Evicted 7947 | -9/Scraptown | Visited CR-KLE's Repair Center 7970 | -9/Scraptown | CR-KLE repaired 6 parts 8027 | -9/Scraptown | Visited Red Mages 8131 | -9/Scraptown | Visited CPS Storage 8617 | -9/Scraptown | Visited IN-MT5's Study 8780 | -9/Scraptown | Visited Symbiants 9023 | -9/Scraptown | Discovered new exit (range 11) 9145 | -9/Scraptown | Visited UFD Registry 9145 | -9/Scraptown | Registered with UFD as "Biosplitter" 9200 | -9/Scraptown | Visited DA-N13 Charitable Foundation 9210 | -9/Scraptown | Found DCF Scrap (31 items) 9289 | -9/Scraptown | Visited Science Testing Area 9311 | -9/Scraptown | Visited Scrapoid Research Area 9439 | -9/Scraptown | Visited A0-MCA Data Center 9459 | -9/Scraptown | Visited Analyses Database 9491 | -9/Scraptown | Given a B- rating by A0-MCA 9496 | -9/Scraptown | Found A0-MCA's Component Scanner 9534 | -9/Scraptown | Visited Abandonware Association 9549 | -9/Scraptown | Learned abandonware demo "REVENGE.EXE" 9569 | -9/Scraptown | Visited Chapter 10 9601 | -9/Scraptown | Visited Derelict Rescue Squad 9633 | -9/Scraptown | Visited Science Guys 9673 | -9/Scraptown | Visited Botcube Research 9795 | -9/Scraptown | Discovered new exit (range 5) 9861 | -9/Scraptown | Met Optimus 9861 | -9/Scraptown | Accepted into 0bPrime 9930 | -9/Scraptown | Entered Factory 9930 | -6/Factory | Evolved 6 slots: Propulsion x2, Utility x4 10025 | -6/Factory | Loaded intel: 8 recycling unit locations 10157 | -6/Factory | Discovered new exit (range 15) 10375 | -6/Factory | Build established: Hacker-Mutant 10806 | -6/Factory | Garrison activated, responded to threat 10887 | -6/Factory | Learned location of Protoforge (-3) 12578 | -6/Factory | Identified exit to Lower Caves 12612 | -6/Factory | Discovered new exit (range 14) 12773 | -6/Factory | Discovered new exit (range 13) 12788 | -6/Factory | Build established: Hacker-Sprinter 12977 | -6/Factory | Repaired Imp. Datajack? 13015 | -6/Factory | Repaired Cld. Plasma Cannon? 13080 | -6/Factory | Search patrols dispatched 13176 | -6/Factory | Discovered new exit (range 15) 13266 | -6/Factory | Repaired Imp. Flight Unit 13406 | -6/Factory | Fabricated Imp. Transmission Jammer (x2) 13430 | -6/Factory | Search patrols dispatched 13441 | -6/Factory | Sucked down chute 13441 | -6/Factory | Entered Waste 13444 | -6/Waste | Spotted C-40 Crusher 13444 | -6/Waste | Spotted C-40 Crusher 13447 | -6/Waste | Spotted C-40 Crusher 13456 | -6/Waste | EMP discharged 13456 | -6/Waste | System corruption reached 10% 13472 | -6/Waste | Spotted C-40 Crusher 13475 | -6/Waste | Spotted C-40 Crusher 13479 | -6/Waste | Spotted C-40 Crusher 13482 | -6/Waste | Discovered new exit (range 16) 13496 | -6/Waste | Entered Factory 13571 | -6/Factory | Discovered exit to Lower Caves (range 3) 13573 | -6/Factory | Discovered new exit (range 5) 13576 | -6/Factory | Assembled infested ambush trap array 13876 | -6/Factory | Discovered exit to Lower Caves (range 4) 14001 | -6/Factory | Loaded intel: 8 recycling unit locations 14064 | -6/Factory | Fabricated Force Lance? 14185 | -6/Factory | Released all parts (9) 14209 | -6/Factory | Core integrity fell below 50% 14500 | -6/Factory | Identified exit to Factory 14509 | -6/Factory | Entered Lower Caves 14633 | -6/Lower Caves | Learned 4 Factory zone layouts 14659 | -6/Lower Caves | Core integrity fell below 20% 14672 | -6/Lower Caves | P-60 Hacker assimilated allied 9K-RB3(S) 14795 | -6/Lower Caves | Discovered new exit (range 7) 14801 | -6/Lower Caves | Identified exit to Lower Caves 14803 | -6/Lower Caves | Spotted B-75 Beast 14885 | -6/Lower Caves | Entered another Lower Caves area 14888 | -6/Lower Caves | Learned Factory emergency access door positions 14889 | -6/Lower Caves | Discovered exit to Factory (range 6) 14893 | -6/Lower Caves | Learned Factory machine intel 14912 | -6/Lower Caves | Entered a destroyed Warlord outpost 15099 | -6/Lower Caves | Found Alien Artifact 15099 | -6/Lower Caves | Identified Core Expander 15099 | -6/Lower Caves | Installed Core Expander, added new Power slot 15115 | -6/Lower Caves | Discovered new exit (range 5) 15116 | -6/Lower Caves | Identified exit to Zion 15147 | -6/Lower Caves | Entered Zion 15182 | -6/Zion | Given the Hacking Drone Bay 15185 | -6/Zion | Found Prototype Device 15185 | -6/Zion | Identified Hacking Drone Bay 15189 | -6/Zion | Discovered new exit (range 16) 15202 | -6/Zion | System corruption cleaned by Quarantine Array 15228 | -6/Zion | Found CR-A16's Pointy Stick 15306 | -6/Zion | Acquired unknown access codes intercepted by a Zionite 15376 | -6/Zion | Identified exit to Proximity Caves 15376 | -6/Zion | Entered Proximity Caves 15389 | -5/Proximity Caves | Learned Factory non-interactive machine intel 15404 | -5/Proximity Caves | Build established: Scavenger-Scout 15746 | -5/Proximity Caves | Received a Behemoth hack from an annoying Tinkerer 15890 | -5/Proximity Caves | Discovered exit to Factory (range 11) 15893 | -5/Proximity Caves | Spotted B-75 Beast 15894 | -5/Proximity Caves | Entered Factory 15894 | -5/Factory | Evolved 2 slots: Propulsion x1, Utility x1 15895 | -5/Factory | Identified exit to Upper Caves 15898 | -5/Factory | Loaded intel: 256 machine locations 15899 | -5/Factory | Loaded intel: 202 non-interactive machine locations 16347 | -5/Factory | Lost 5 parts (2p2n1u) 16603 | -5/Factory | Build established: Scavenger-Mutant 16603 | -5/Factory | Lost 4 parts (1n2u1w) 16760 | -5/Factory | Discovered new exit (range 5) 16761 | -5/Factory | Identified exit to Factory 16860 | -5/Factory | Lost 3 parts (2n1u) 16967 | -5/Factory | Lost 3 parts (2n1u) 17096 | -5/Factory | Lost 4 parts (2p1u1w) 17184 | -5/Factory | Core integrity fell below 50% 17184 | -5/Factory | Manually triggered Chute Trap 17184 | -5/Factory | Sucked down chute 17184 | -5/Factory | Entered Waste 17195 | -5/Waste | Spotted C-40 Crusher 17199 | -5/Waste | EMP discharged 17199 | -5/Waste | System corruption reached 10% 17204 | -5/Waste | Spotted C-40 Crusher 17204 | -5/Waste | Spotted C-40 Crusher 17213 | -5/Waste | Build established: Hacker-Mutant 17240 | -5/Waste | Spotted C-40 Crusher 17258 | -5/Waste | Spotted C-40 Crusher 17266 | -5/Waste | Spotted C-40 Crusher 17274 | -5/Waste | Crushed by Compactor (1 part destroyed, 2 dropped) 17293 | -5/Waste | Discovered new exit (range 12) 17299 | -5/Waste | EMP discharged 17317 | -5/Waste | Identified exit to Factory 17318 | -5/Waste | Entered Factory 17581 | -5/Factory | Discovered exit to Factory (range 6) 17584 | -5/Factory | Entered another Factory area 17584 | -4/Factory | Evolved 2 slots: Utility x2 17688 | -4/Factory | Lost 4 parts (1p1n2u) 17953 | -4/Factory | Discovered new exit (range 12) 17965 | -4/Factory | Identified exit to Extension 18116 | -4/Factory | Build established: Scavenger-Mutant 18179 | -4/Factory | Released all parts (11) 18189 | -4/Factory | Entered Extension 18209 | -4/Extension | Lost 9 parts (1p2n4u2w) 18209 | -4/Extension | Core integrity fell below 50% 18224 | -4/Extension | Released all parts (5) 18280 | -4/Extension | Spotted B-86 Titan 18282 | -4/Extension | Spotted B-86 Titan 18288 | -4/Extension | Core integrity fell below 20% 18289 | -4/Extension | Destroyed by Y-64 Sentinel with KE Penetrator Last Messages --------------- 18204_ ALERT: Hostiles spotted, dispatching reinforcements to Terminal E003. 18204_ O-16 Technician locks terminal. 18212_ Acquired VSS Leg. [Achievement: Sprinter] 18214_ Acquired VSS Leg. 18222_ Penetrated by Slug. 18223_ Acquired VSS Leg. 18224_ Released VSS Leg. 18224_ Slug penetrates Wall. 18241_ R-10 Processor exits Transfer Station. 18283_ Slug penetrates Wall. 18283_ Knocked back. 18283_ Penetrated by Slug. 18285_ Machine disabled. 18285_ Knocked back. 18286_ System corrupted: Heat flow error (+103). 18287_ Knocked back. 18288_ Slug penetrates B-86 Titan. 18289_ Penetrated by Slug. Map ----- +----------------------------------------------------+ | ?????????????????????????????????????????????????? | | ?????????????????????????????????????????????????? | | ?????????????????????????????????????????????????? | | ???????????????????? ???????????????????????????? | | ???????????????????? ???????????????????????????? | | ???????????????????? ???????????????????????????? | | ??????????????????? ???????????????????????????? | | ???????????????????? #??????????????????????????? | | ???????????????????? #??????????????????????????? | | ???????????????????? #??????????????????????????? | | ???????????????????? #??????????????????????????? | | ????????????????????# #??##?##???????????????????? | | ??????????????????###w### ## ### ##??????????????? | | ??????????????????#"" " Y ""g""#?????????????? | | ??????????????????# " " Y "g" #?????????????? | | ??????????????????# u g #?????????????? | | ????????????##????# #?????????????? | | #############;##### ####??????????? | | R % R ??????????? | | % ?????????? | | ?????????? | | ?????????? | | ?????????? | | ##############"#### BB BB ###???????????? | | ??????????????????# BB % BB #?????????????? | | ??????????????????# @ #?????????????? | | ??????????????????# #?????????????? | | ??????????????????# #?????????????? | | ??????????????????######T#"""#######?????????????? | | ???????????????????????###???????????????????????? | | ?????????????????????????????????????????????????? | | | | | | | | | | | | | | | | | | | | | | | | | | | | | | | | | | | | | | | +----------------------------------------------------+ Best States ------------- Heat Dissipation 95 Energy Generation 37 Energy Capacity 550 Matter Stores 300 Matter Capacity 300 Sight Range 16 Robot Scan Range 16 Terrain Scan Density 10 Power Amplification 40 Additional Mass Support 6 Armor Coverage 225 Evasion (%) 65 Melee Accuracy 13 Recoil Reduction 3 Offensive Hacking 30 Defensive Hacking 14 Authchip Count 2 Trap Extractor Capacity 10 Item Schematics ----------------- Huge Storage Unit | -10/Materials | Hacked Hardlight Generator | -9/Recycling | Hacked Imp. Transmission Jammer | -6/Factory | Hacked CPS Tube | -6/Factory | Scanalyzed Jamming Amplifier | -6/Factory | Scanalyzed Seismic Detector | -6/Factory | Scanalyzed Force Lance | -6/Factory | Scanalyzed Adv. System Restoration Module | -6/Zion | Archive Matter Compressor | -6/Zion | Archive Imp. Remote Datajack | -6/Zion | Archive Enh. Optical Array | -6/Zion | Archive Adv. Cooling System | -6/Zion | Archive Lgt. Angular Momentum Engine | -6/Zion | Archive Neutrino Core | -6/Zion | Archive Nuclear Pulse Thruster | -6/Zion | Archive Imp. Remote Shield | -6/Zion | Archive Hardcell Cannon | -6/Zion | Archive Imp. System Restoration Module | -6/Zion | Archive Lgt. Fission Core | -6/Zion | Archive Imp. Shock Absorption System | -6/Zion | Archive Imp. Corruption Screen | -6/Zion | Archive Arm. Leg | -6/Zion | Archive Robot Schematics ------------------ H-66 Slayer | -6/Zion | Archive L-41 Fighter | -6/Zion | Archive G-50 Soldier | -6/Zion | Archive L-61 Swordsman | -6/Zion | Archive Fabricated ------------ Imp. Transmission Jammer | x2 | -6/Factory Force Lance | x2 | -6/Factory Repaired ---------- Imp. Datajack | 30% | -6/Factory Cld. Plasma Cannon | 16% | -6/Factory Imp. Flight Unit | 55% | -6/Factory Studied --------- None Alien Tech Used ----------------- Core Expander Achievements -------------- A Problem For Future Me Civilization 2243 Deductive Reasoning Ew, Corruption Heavy Suspicion Hulk Smash Insider Info Junior Dev Link The Feds Live, Flee, And Rebuild Network Effect Not Today, Chutes Overwhelming Recruitment Drive Sprinter Suspicious There's More Where That Came From Throw Away The Key You May Approach The Wall Challenges ------------ None Game ------ Seed PhasingAnalysisPick Manual? 0 Play Time 02:44:34 Cumulative 497.0 hours Start 2025.11.23 @ 01:15:29 End 2025.11.23 @ 03:59:40 Sessions 1 Manual Loads 0 Difficulty Rogue Special Mode None Game No. 403 Rogue 395 Adventurer 0 Explorer 8 Win Type - Total 8 Types 6/0/2/0/0/0/0/0/0/0 Lore% 84 Gallery% 75 Achievement% 43 Wizard Run 0 Options --------- Layout 1 ASCII 0 Keyboard 1 Movement Vi Keybinds 0 Fullscreen 1 Font 24/Smallcaps Map View 50x35 Zoom Use 0% Tactical HUD 1 Map Filters NONE Filters NONE Steam 1 RUN: 2c728889-eab0-4229-a7cb-89b491f6a364